bitfinex-derivatives/quotes_ETHF0:USTF0_20250926
["timestamp","ask_amount","ask_price","bid_price","bid_amount"]
[1758848459300,0.4088,3931.7,3931.5,4.7799231]
[1758848459596,1.1248,3931.8,3931.2,0.2577]
[1758848459797,1.5336,3931.8,3931.6,0.45756]
[1758848459991,1.5336,3931.8,3931.7,0.289]
[1758848460192,1.1248,3931.8,3931.7,0.5443]
[1758848460987,1.58233,3931.8,3931.1,4.7799231]
[1758848461191,1.58233,3931.8,3931.2,0.289]
[1758848461192,0.4266,3931.7,3931.2,0.289]
[1758848461396,1.1248,3931.8,3931.7,0.2553]
[1758848461607,1.1248,3931.8,3931.7,0.5443]
[1758848461991,1.5514,3931.8,3931.0,0.1248]
[1758848462292,1.5514,3931.8,3931.4,5.2375031]
[1758848462293,0.5955,3931.5,3931.4,5.2375031]
[1758848462591,1.5514,3931.8,3931.7,0.45755]
[1758848462791,1.5514,3931.8,3931.7,0.74655]
[1758848462992,1.5514,3931.8,3931.7,0.289]
[1758848463196,2.07974746,3931.8,3931.7,0.289]
[1758848465101,0.431,3931.4,3930.4,0.2533]
[1758848465398,0.431,3930.9,3930.7,0.288]
[1758848465598,0.62623,3931.0,3930.5,4.7799231]
[1758848465902,0.96133542,3930.9,3930.8,0.288]
[1758848467095,0.53033542,3930.9,3930.8,10.3212231]
[1758848467297,0.0254,3931.3,3931.2,0.71091]
[1758848467498,0.0254,3931.3,3931.2,0.99891]
[1758848468102,0.0254,3931.3,3931.2,41.79891]
[1758848468400,0.431,3932.2,3931.7,0.71085]
[1758848468703,0.1686,3933.0,3932.5,0.45745]
[1758848468704,0.431,3932.6,3932.5,0.45745]
[1758848469003,0.431,3932.6,3932.5,0.74545]
[1758848469004,0.53740495,3932.6,3932.5,0.74545]
[1758848469203,0.431,3932.9,3932.5,0.288]
[1758848469494,0.431,3932.7,3932.5,0.288]
[1758848469700,0.53724187,3932.6,3932.5,0.288]
[1758848469901,0.53724187,3932.6,3932.3,5.2373931]
[1758848469902,0.431,3932.5,3932.3,4.7799231]
[1758848470100,0.5996,3932.5,3932.4,0.288]
[1758848470404,0.1686,3933.0,3932.6,0.45743]
[1758848470599,0.431,3932.8,3932.7,0.288]
[1758848470800,0.96813241,3932.8,3932.7,0.288]
[1758848472109,0.431,3933.4,3932.7,0.5413]
[1758848472402,0.431,3933.2,3933.0,0.4574]
[1758848472602,0.431,3933.0,3932.8,41.25742]
[1758848472803,0.1686,3933.0,3932.8,41.25742]
[1758848473005,0.1686,3933.0,3932.9,0.288]
[1758848473499,0.1686,3933.0,3932.8,40.8]
[1758848473500,0.431,3932.9,3932.8,41.25741]
[1758848473697,0.431,3932.9,3932.8,41.54541]
[1758848474505,0.431,3932.9,3932.8,41.088]
[1758848476407,0.431,3932.9,3932.8,41.54542]
[1758848476599,1.0035,3933.3,3932.9,0.2533]
[1758848476907,0.431,3933.1,3933.0,0.288]
[1758848477302,1.0035,3933.3,3933.2,0.45737]
[1758848477600,0.194,3933.5,3933.4,0.2533]
[1758848477601,0.0254,3933.5,3933.4,0.2533]
[1758848477808,0.0254,3933.5,3933.4,0.5413]
[1758848478105,0.5996,3934.0,3933.4,0.99864]
[1758848478303,0.431,3933.9,3933.7,4.7799231]
[1758848478504,0.431,3933.9,3933.8,0.288]
[1758848478813,0.1686,3935.0,3934.4,0.45723]
[1758848478814,0.5996,3935.0,3934.4,0.45723]
[1758848478995,0.431,3934.8,3932.8,1.14355]
[1758848479313,0.5996,3934.5,3934.1,0.71056]
[1758848479614,0.1686,3934.5,3934.2,0.288]
[1758848479803,0.1686,3934.5,3934.0,4.7799231]
[1758848480103,0.431,3934.4,3934.0,5.2371931]
[1758848480307,0.9789,3934.6,3934.1,0.74526]
[1758848480512,0.431,3934.5,3934.4,4.7799231]
[1758848480809,0.431,3934.5,3934.4,5.0679231]
[1758848481909,0.9789,3934.6,3934.4,5.5251531]
[1758848482204,0.9789,3934.6,3934.5,0.2533]
[1758848482412,0.0254,3935.1,3935.0,0.71046]
[1758848482709,0.431,3935.9,3935.7,0.2533]
[1758848482905,0.53531844,3936.4,3935.9,0.45706]
[1758848483104,0.07830844,3936.4,3936.0,0.288]
[1758848483406,0.07830844,3936.4,3936.1,0.288]
[1758848483706,0.07830844,3936.4,3936.2,0.71032]
[1758848484007,0.07830844,3936.4,3936.3,0.5413]
[1758848484402,0.1686,3937.5,3936.3,0.5413]
[1758848484403,0.1686,3939.0,3936.3,5.5413]
[1758848484608,0.431,3938.3,3937.7,5.93464005]
[1758848484804,0.431,3938.3,3937.7,5.47779005]
[1758848485108,0.453,3937.9,3937.8,40.8]
[1758848485411,0.45684,3937.8,3937.5,0.287]
[1758848485605,0.45689,3937.4,3936.2,0.175]
[1758848485905,0.45691,3937.3,3936.3,40.8]
[1758848486105,0.431,3937.2,3936.7,0.45696]
[1758848486304,0.1686,3937.5,3936.8,0.74394]
[1758848486498,0.431,3937.4,3936.8,0.74394]
[1758848486710,0.431,3937.4,3937.0,0.45693]
[1758848487011,0.0122,3937.6,3937.0,0.45693]
[1758848487012,0.0122,3937.6,3937.4,0.45689]
[1758848487305,0.0122,3937.6,3937.5,0.287]
[1758848487701,0.0122,3937.6,3937.5,41.262]
[1758848487906,0.0122,3937.6,3937.5,41.087]
[1758848488505,0.431,3939.1,3937.8,0.1628]
[1758848488709,0.1686,3940.0,3937.7,11.42133]
[1758848488710,0.431,3939.9,3939.5,0.45664]
[1758848488910,0.431,3939.9,3938.9,5.46559005]
[1758848488911,0.431,3939.9,3939.8,0.4566]
[1758848489105,0.1686,3940.5,3940.0,0.45658]
[1758848489302,0.1686,3940.5,3940.1,0.287]
[1758848489704,0.431,3940.4,3940.1,0.287]
[1758848489900,0.431,3940.4,3940.2,0.45656]
[1758848490111,0.1686,3940.5,3940.2,0.45656]
[1758848490414,0.3989,3940.9,3940.3,0.287]
[1758848490605,0.1583,3940.5,3940.3,0.287]
[1758848490811,0.3989,3940.4,3939.7,0.45661]
[1758848491013,0.3989,3940.4,3939.9,0.4566]
[1758848491312,0.3989,3940.4,3939.8,0.287]
[1758848491617,0.3989,3940.4,3940.2,0.45655]
[1758848491812,0.3989,3940.4,3939.4,40.8]
[1758848492013,0.3989,3940.4,3939.5,0.287]
[1758848492514,0.3989,3940.4,3939.4,46.10279005]
[1758848492706,0.45655,3940.3,3939.5,0.287]
[1758848492907,0.1583,3940.0,3939.5,0.287]
[1758848493206,0.1583,3940.0,3938.6,0.166]
[1758848493207,0.5572,3939.5,3938.6,0.166]
[1758848493406,0.3989,3939.4,3939.0,0.4567]
[1758848493607,0.1583,3939.5,3939.1,41.087]
[1758848494718,0.1583,3939.5,3939.2,0.287]
[1758848495403,0.0105,3939.9,3939.2,0.74368]
[1758848495606,0.4094,3939.9,3939.2,0.287]
[1758848495811,0.4094,3939.9,3939.1,40.8]
[1758848496009,0.0105,3939.9,3939.1,40.8]
[1758848496217,0.0105,3939.9,3939.7,0.45661]
[1758848496420,0.4094,3939.9,3939.8,0.287]
[1758848496615,0.4094,3939.9,3939.8,0.453]
[1758848496616,0.0105,3939.9,3939.8,0.453]
[1758848496919,0.3989,3939.8,3939.7,0.45661]
[1758848497116,0.3989,3939.8,3939.7,0.74361]
[1758848497316,0.3989,3939.9,3939.5,5.75942005]
[1758848497522,0.1583,3940.0,3939.5,5.75942005]
[1758848497523,0.1583,3940.0,3939.6,0.74362]
[1758848497719,0.3989,3939.9,3939.5,5.30279005]
[1758848497925,0.1583,3940.0,3939.1,40.8]
[1758848497926,0.3989,3939.4,3939.1,40.8]
[1758848498225,0.3989,3939.4,3939.2,0.287]
[1758848498419,0.85555,3939.4,3938.6,0.45675]
[1758848498619,0.3989,3939.4,3938.7,0.287]
[1758848498820,0.3989,3939.4,3939.1,0.45668]
[1758848499117,0.3989,3939.4,3938.8,0.45671]
[1758848499322,0.1583,3939.0,3938.7,40.8]
[1758848499519,0.3989,3938.9,3938.2,0.45678]
[1758848499719,0.3989,3938.9,3938.3,0.287]
[1758848499925,0.1583,3939.0,3938.3,0.287]
[1758848499926,0.1583,3938.5,3938.3,0.287]
[1758848500129,0.3989,3938.4,3938.0,0.50468952]
[1758848500426,0.1583,3938.5,3938.1,0.287]
[1758848500625,0.1583,3938.5,3938.1,41.087]
[1758848500822,0.45679,3938.3,3938.0,0.04788952]
[1758848501123,0.1583,3938.0,3936.6,5.30279005]
[1758848501316,0.3989,3937.9,3937.3,0.4569]
[1758848501521,0.5572,3937.5,3937.4,0.287]
[1758848501824,0.3989,3937.9,3937.8,0.45684]
[1758848502136,0.3989,3937.9,3937.2,5.30279005]
[1758848502517,0.3989,3937.9,3936.9,0.45694]
[1758848502718,0.3989,3937.9,3937.3,0.287]
[1758848502919,0.1583,3938.5,3937.9,0.45683]
[1758848503236,0.3989,3938.3,3938.0,0.287]
[1758848503428,0.5572,3937.5,3936.7,46.10279005]
[1758848503620,0.1583,3937.5,3936.8,0.74396]
[1758848503927,0.1583,3937.5,3935.0,248.002]
[1758848503928,0.1583,3937.0,3935.0,248.002]
[1758848504118,0.1583,3937.0,3934.8,40.8]
[1758848504119,0.3989,3936.4,3934.8,40.8]
[1758848504323,0.3989,3936.4,3934.4,39.61]
[1758848504324,0.45714,3935.2,3934.4,39.61]
[1758848504526,0.45714,3935.2,3934.0,0.45728]
[1758848504527,0.3989,3935.1,3934.0,0.45728]
[1758848504829,0.3989,3934.9,3934.1,41.087]
[1758848505325,0.3989,3935.7,3935.2,0.45713]
[1758848505625,0.1583,3936.0,3935.1,0.6163]
[1758848505830,0.3989,3935.9,3935.1,0.6163]
[1758848506031,0.1583,3936.5,3935.6,0.3293]
[1758848506331,0.45703,3936.2,3935.1,0.3293]
[1758848506526,0.1583,3936.5,3935.2,0.287]
[1758848506527,0.3989,3935.9,3935.2,0.287]
[1758848506721,0.5572,3936.5,3935.9,0.45705]
[1758848506924,0.3989,3936.4,3935.3,5.30279005]
[1758848507129,0.1583,3936.5,3935.4,0.287]
[1758848507130,0.3989,3935.9,3935.4,0.287]
[1758848507329,0.1583,3936.0,3935.4,0.287]
[1758848507626,0.1583,3936.5,3935.6,0.45709]
[1758848507825,0.1583,3936.5,3935.7,0.3293]
[1758848507826,0.98689249,3936.4,3935.7,0.3293]
[1758848508127,0.98689249,3936.4,3935.3,5.30279005]
[1758848508128,0.3989,3935.9,3935.8,0.287]
[1758848508324,0.5572,3936.0,3935.5,0.287]
[1758848508520,0.1583,3936.5,3935.7,0.45708]
[1758848508521,0.5572,3936.5,3935.7,0.45708]
[1758848508721,0.3989,3936.3,3935.5,0.287]
[1758848508927,0.98736733,3936.2,3935.5,0.287]
[1758848509122,0.3989,3935.9,3935.5,0.287]
[1758848509426,0.3989,3936.4,3935.5,0.287]
[1758848509640,0.3989,3936.4,3935.7,0.45708]
[1758848509828,0.3989,3936.9,3936.3,0.45701]
[1758848510031,0.53048375,3936.8,3936.5,0.45699]
[1758848510222,0.1583,3937.5,3936.4,0.287]
[1758848510425,0.53073711,3936.9,3936.4,41.087]
[1758848510724,0.3989,3936.7,3935.9,0.45705]
[1758848511030,0.5572,3936.5,3936.0,0.286]
[1758848511230,0.1583,3936.5,3936.0,0.286]
[1758848511630,0.3989,3936.4,3936.0,0.286]
[1758848511827,0.3989,3936.4,3936.3,0.45701]
[1758848512031,0.3989,3936.9,3936.3,0.45701]
[1758848512219,0.45691,3937.2,3936.4,0.286]
[1758848512220,0.53112097,3936.8,3936.4,0.286]
[1758848512425,0.3989,3937.4,3937.0,0.45692]
[1758848512625,0.1583,3937.5,3936.9,0.286]
[1758848512626,0.1583,3937.0,3936.9,0.286]
[1758848512931,0.1583,3937.0,3936.7,0.286]
[1758848513127,0.3989,3936.9,3936.7,0.286]
[1758848513435,0.3989,3937.3,3936.7,0.286]
[1758848513629,0.3989,3937.0,3936.7,0.286]
[1758848513831,0.53139059,3936.9,3936.8,0.74296]
[1758848514134,0.1583,3937.5,3937.0,0.45693]
[1758848514334,0.53139519,3937.4,3936.8,0.286]
[1758848514535,0.53139519,3937.4,3936.7,0.45696]
[1758848514536,0.93029519,3937.3,3936.4,0.45699]
[1758848514738,0.1583,3937.0,3936.5,0.286]
[1758848514930,0.3989,3936.9,3936.6,0.45698]
[1758848515131,0.3989,3936.9,3936.5,0.74298]
[1758848515332,0.3989,3936.9,3936.3,5.30279005]
[1758848515635,0.1583,3937.0,3936.4,0.743]
[1758848515936,0.3989,3936.9,3936.5,0.286]
[1758848516331,0.3989,3936.9,3936.3,0.45701]
[1758848516332,0.3989,3936.9,3936.4,0.45699]
[1758848516532,0.3989,3936.9,3936.5,0.286]
[1758848516732,0.1583,3937.0,3936.5,0.286]
[1758848516935,0.3989,3936.9,3936.5,0.286]
[1758848517146,0.1583,3937.0,3935.4,0.3293]
[1758848517332,0.1583,3937.0,3936.0,0.286]
[1758848517333,0.3989,3936.3,3936.0,0.286]
[1758848517532,0.1583,3936.0,3935.9,0.286]
[1758848517734,0.5572,3936.0,3935.1,5.30279005]
[1758848517934,0.3989,3936.3,3935.6,5.63209005]
[1758848518134,0.3989,3936.1,3935.7,0.286]
[1758848518330,0.1583,3936.0,3935.6,0.286]
[1758848518541,0.3989,3935.9,3935.6,0.286]
[1758848518741,0.5572,3936.0,3935.7,0.45707]
[1758848519041,0.1583,3936.0,3935.6,0.286]
[1758848519340,0.1583,3936.0,3935.6,0.74309]
[1758848519538,0.1583,3936.0,3935.7,0.45707]
[1758848519742,0.3989,3935.9,3935.7,0.45707]
[1758848519933,0.1583,3936.0,3935.7,0.286]
[1758848520132,0.3991,3935.9,3935.7,0.74307]
[1758848520439,0.1583,3936.0,3935.2,40.8]
[1758848520634,0.1733,3935.5,3934.6,5.62079005]
[1758848520840,0.3991,3935.3,3933.7,0.318]
[1758848521042,0.45717,3935.0,3933.8,0.286]
[1758848521235,0.53164934,3934.9,3933.9,40.8]
[1758848521545,0.3991,3934.8,3934.0,0.286]
[1758848521734,0.1733,3935.5,3934.7,0.4572]
[1758848521941,0.1733,3935.0,3934.5,0.286]
[1758848522142,0.3991,3934.9,3934.2,0.45725]
[1758848522449,0.3991,3934.9,3934.1,5.30279005]
[1758848522450,0.3991,3934.9,3934.3,0.74323]
[1758848522840,0.1733,3935.0,3934.3,0.74323]
[1758848523041,0.45721,3934.7,3933.9,40.8]
[1758848523233,0.1733,3935.0,3933.9,0.286]
[1758848523234,0.3991,3934.4,3933.9,0.286]
[1758848523440,0.1733,3934.5,3932.9,0.02542685]
[1758848523441,0.3991,3933.9,3932.9,0.02542685]
[1758848523741,0.3994,3933.9,3933.1,5.61889005]
[1758848524043,0.014,3934.3,3934.1,0.77336]
[1758848524244,0.014,3934.3,3934.1,1.05936]
[1758848524441,0.014,3934.3,3934.1,0.74326]
[1758848524743,0.3994,3934.2,3933.5,0.45733]
[1758848524946,0.3994,3934.2,3933.6,0.74332]
[1758848525149,0.014,3934.3,3933.6,0.286]
[1758848525447,0.014,3934.3,3933.0,40.8]
[1758848525636,0.3994,3934.2,3933.6,0.45732]
[1758848525837,0.3994,3934.2,3933.8,0.4573]
[1758848526038,0.3994,3934.2,3933.1,0.286]
[1758848526240,0.53204463,3934.1,3933.1,0.286]
[1758848526438,0.85667,3934.2,3933.1,0.286]
[1758848526636,0.3994,3934.2,3933.1,0.286]
[1758848526843,0.3994,3933.7,3933.0,40.8]
[1758848527148,0.1623,3934.0,3932.9,0.02542685]
[1758848527149,0.5617,3933.0,3932.9,0.02542685]
[1758848529350,5.5617,3933.0,3932.9,0.02542685]
[1758848529752,0.3994,3932.4,3931.9,0.45752]
[1758848529952,0.3994,3931.9,3931.7,0.45754]
[1758848530144,0.3994,3931.9,3931.5,0.286]
[1758848530145,0.3994,3931.9,3931.8,0.45753]
[1758848530344,0.1623,3932.5,3932.2,0.45749]
[1758848530345,0.3994,3932.4,3932.2,0.45749]
[1758848530850,0.1623,3933.0,3932.2,0.45749]
[1758848531048,0.93140844,3932.9,3931.7,0.286]
[1758848531251,0.1623,3932.0,3931.1,0.45761]
[1758848531553,0.1623,3932.0,3931.1,0.3161]
[1758848531554,0.3994,3931.9,3931.1,0.3161]
[1758848531748,0.3994,3931.9,3931.6,0.45755]
[1758848532047,0.3994,3931.9,3931.6,0.45756]
[1758848532445,0.1623,3932.0,3931.1,40.8]
[1758848532646,0.1623,3932.0,3930.6,5.61889005]
[1758848532647,0.45758,3931.5,3930.6,0.3161]
[1758848532847,0.3994,3931.4,3931.2,0.4576]
[1758848533144,0.3994,3931.4,3931.0,0.45763]
[1758848533351,0.3994,3931.4,3930.8,0.45765]
[1758848533848,0.1623,3931.5,3929.7,5.30279005]
[1758848534050,0.85705,3930.9,3929.5,0.3161]
[1758848534257,0.85705,3930.9,3930.0,0.45773]
[1758848534446,0.3994,3930.8,3930.0,41.25773]
[1758848534647,0.45765,3930.9,3930.0,41.25773]
[1758848534953,0.45765,3930.9,3929.5,0.3161]
[1758848534954,0.3994,3930.4,3929.7,0.45777]
[1758848535252,0.1623,3930.5,3929.5,0.3161]
[1758848535253,0.3994,3929.9,3929.5,0.286]
[1758848535752,0.3994,3929.9,3929.7,0.45777]
[1758848535950,0.3994,3929.9,3929.0,0.3161]
[1758848536345,0.3994,3929.9,3929.0,0.45786]
[1758848536548,0.85716,3929.9,3929.1,0.45784]
[1758848536854,0.3994,3929.9,3929.3,0.45782]
[1758848537041,0.3994,3929.9,3929.1,0.45784]
[1758848537245,0.3994,3929.9,3929.3,0.45782]
[1758848537445,0.3994,3929.9,3928.9,0.286]
[1758848537645,0.3994,3929.9,3928.5,0.3161]
[1758848537949,0.3994,3929.9,3929.1,0.45784]
[1758848538144,0.3994,3929.4,3928.5,0.3161]
[1758848538346,0.45795,3928.3,3927.9,0.02545922]
[1758848538544,0.1623,3929.5,3927.9,0.02545922]
[1758848538545,0.5617,3928.0,3927.9,0.02545922]
[1758848539347,0.5617,3928.0,3926.1,0.3161]
[1758848539348,0.3994,3927.4,3926.1,0.3161]
[1758848539657,0.1623,3927.5,3926.5,0.45815]
[1758848539658,0.3994,3927.2,3926.5,0.45815]
[1758848539855,0.3994,3927.4,3926.6,0.3161]
[1758848540154,0.1623,3928.0,3927.5,0.45803]
[1758848540155,0.3994,3927.9,3927.5,0.45803]
[1758848540357,0.5617,3928.5,3927.5,0.77413]
[1758848540652,0.5617,3928.5,3928.4,0.45793]
[1758848540847,0.3994,3928.9,3928.6,0.4579]
[1758848541043,0.3994,3928.9,3928.0,5.61889005]
[1758848541450,0.62022,3928.5,3927.6,0.45802]
[1758848541650,0.62022,3928.5,3927.4,40.8]
[1758848541651,0.3994,3928.4,3927.8,0.45799]
[1758848541854,0.3994,3928.4,3927.1,0.3161]
[1758848542156,0.3994,3927.9,3927.2,0.45807]
[1758848542350,0.3994,3927.9,3926.9,0.45809]
[1758848542652,0.8574,3927.9,3927.0,0.45808]
[1758848542956,0.1623,3928.0,3926.7,41.086]
[1758848542957,0.3994,3927.7,3926.7,41.086]
[1758848543159,0.5617,3928.0,3927.7,0.458]
[1758848543451,0.3543,3928.5,3927.2,0.3161]
[1758848543452,0.3994,3928.2,3927.2,0.3161]
[1758848543755,0.62029,3928.0,3926.9,0.45809]
[1758848544056,0.45805,3927.4,3926.7,41.086]
[1758848544255,0.3994,3927.1,3926.2,0.45818]
[1758848544460,0.3994,3926.9,3926.1,0.286]
[1758848544646,0.3994,3927.5,3926.8,4.79132906]
[1758848544846,0.1623,3928.0,3926.8,4.79132906]
[1758848544847,0.3994,3927.9,3926.8,4.79132906]
[1758848545047,0.1623,3927.0,3925.5,0.3161]
[1758848545252,0.3994,3926.9,3925.6,0.154]
[1758848545459,0.3994,3926.4,3925.6,0.45826]
[1758848545650,0.1623,3926.5,3925.0,5.21812906]
[1758848545651,0.1623,3926.5,3925.1,40.861]
[1758848545850,0.3994,3926.4,3925.5,0.45826]
[1758848546055,0.3994,3926.4,3925.2,0.45829]
[1758848546357,0.3994,3925.9,3925.1,40.861]
[1758848546555,0.62051,3926.0,3925.1,0.51931]
[1758848546761,0.3994,3925.9,3925.3,0.45829]
[1758848546957,0.3994,3925.9,3925.1,0.061]
[1758848547151,0.3994,3925.9,3925.1,0.5193]
[1758848547346,0.1623,3926.0,3925.1,0.5193]
[1758848547563,0.3994,3925.9,3925.1,0.5193]
[1758848548057,0.1623,3926.0,3925.1,0.061]
[1758848548058,0.5617,3926.0,3925.1,0.061]
[1758848548371,0.3994,3926.9,3925.9,0.3161]
[1758848548661,0.3994,3926.9,3925.9,5.10742906]
[1758848548852,0.1623,3927.0,3926.4,0.45816]
[1758848549053,0.1623,3927.0,3925.9,4.79132906]
[1758848549254,0.3994,3926.8,3925.9,4.79132906]
[1758848549464,0.3994,3926.8,3926.7,0.45813]
[1758848549761,0.1623,3927.5,3926.9,0.45811]
[1758848549966,0.3994,3927.5,3927.3,0.45805]
[1758848550161,0.1623,3928.0,3927.5,0.45803]
[1758848550359,0.3942,3927.9,3927.5,0.45803]
[1758848550562,0.1623,3928.0,3927.5,0.45803]
[1758848550862,0.1623,3928.0,3927.7,0.45801]
[1758848551062,0.3942,3927.9,3927.5,0.3043]
[1758848551265,0.45805,3927.4,3927.1,40.8]
[1758848551453,0.1623,3928.0,3926.1,0.4582]
[1758848551454,0.3942,3927.2,3926.3,0.45817]
[1758848551658,0.3942,3927.2,3926.3,0.3043]
[1758848551963,0.3942,3927.4,3927.0,0.45808]
[1758848552150,0.3942,3927.4,3926.7,0.76242]
[1758848552354,0.3942,3927.2,3926.5,0.45815]
[1758848552554,0.3942,3927.2,3926.3,0.45817]
[1758848552762,0.3942,3927.2,3926.2,0.286]
[1758848552763,0.3942,3927.2,3926.4,0.45815]
[1758848552964,0.3942,3927.2,3926.2,0.286]
[1758848552965,0.85227,3927.2,3926.5,0.45814]
[1758848553154,0.1662,3927.5,3925.7,0.45824]
[1758848553155,0.45816,3926.5,3925.7,0.45824]
[1758848553360,0.3942,3926.4,3925.3,0.286]
[1758848553664,0.3942,3926.4,3925.8,0.45822]
[1758848553857,0.3942,3926.4,3925.6,0.45825]
[1758848553858,0.45818,3926.3,3925.6,0.45825]
[1758848554059,0.45818,3926.3,3925.4,40.8]
[1758848554258,0.3942,3925.9,3925.3,0.286]
[1758848554466,0.45823,3925.8,3925.3,0.286]
[1758848554670,0.3942,3925.9,3925.3,0.74429]
[1758848554862,0.3942,3925.9,3925.3,0.286]
[1758848555653,0.3942,3925.8,3924.8,0.45834]
[1758848555958,0.45823,3925.9,3924.6,5.07732906]
[1758848556267,0.1662,3926.0,3924.6,5.07732906]
[1758848556268,0.3942,3925.4,3924.6,4.79132906]
[1758848556461,0.3942,3925.3,3924.5,0.74438]
[1758848556761,0.85252,3925.2,3924.2,0.45842]
[1758848557158,0.3942,3924.9,3924.1,0.5059738]
[1758848557464,0.3942,3924.9,3924.7,0.45835]
[1758848557663,0.3942,3925.4,3924.5,0.3043]
[1758848557864,0.3942,3925.4,3925.1,0.3043]
[1758848558063,0.3942,3925.9,3925.0,0.45832]
[1758848558564,0.1662,3925.5,3924.1,0.3518538]
[1758848558771,0.3942,3925.4,3924.8,0.45835]
[1758848558961,0.45831,3925.2,3924.2,0.45841]
[1758848559272,0.3942,3924.8,3924.3,0.4584]
[1758848559564,0.3942,3924.9,3924.4,0.45839]
[1758848559767,0.1662,3925.0,3924.1,5.14318286]
[1758848560065,0.3942,3924.9,3924.1,0.0475538]
[1758848560265,0.3942,3924.9,3923.9,0.45845]
[1758848560266,2.81255,3924.9,3923.9,0.45845]
[1758848560469,0.3942,3924.4,3923.7,0.45848]
[1758848560864,0.3942,3924.4,3923.5,0.4585]
[1758848561366,0.3942,3924.4,3923.6,0.45848]
[1758848561566,0.3942,3924.4,3923.5,0.3043]
[1758848561768,0.0071,3924.3,3924.1,0.45842]
[1758848561966,0.4522,3925.0,3924.1,0.45842]
[1758848561967,0.1662,3925.0,3924.7,0.45836]
[1758848562182,0.3942,3925.3,3924.7,0.45836]
[1758848562387,0.286,3925.8,3923.9,4.79132906]
[1758848562388,0.3942,3925.1,3923.9,4.79132906]
[1758848562680,0.3942,3924.9,3924.8,0.45834]
[1758848562886,0.3942,3925.4,3925.3,0.45828]
[1758848563080,0.3942,3925.4,3924.7,0.3043]
[1758848563281,0.1662,3925.5,3925.1,0.45831]
[1758848563486,0.3942,3925.3,3925.1,0.45831]
[1758848563776,0.1662,3925.5,3925.1,0.45831]
[1758848563777,0.3942,3925.2,3925.1,0.45831]
[1758848564585,0.3942,3925.4,3925.2,0.4583]
[1758848564887,0.3942,3925.4,3924.5,40.8]
[1758848564888,0.3942,3925.2,3924.9,0.45833]
[1758848565078,0.1662,3925.5,3925.0,0.45832]
[1758848565285,0.3942,3925.3,3925.0,0.45832]
[1758848565476,0.3942,3925.1,3925.0,0.45832]
[1758848565888,0.1662,3925.5,3925.2,0.45829]
[1758848566087,0.3942,3925.3,3925.2,0.45829]
[1758848566291,0.9262455,3925.3,3925.2,0.45829]
[1758848566485,0.5320455,3925.3,3925.1,0.45831]
[1758848566681,0.5320455,3925.2,3925.1,0.45831]
[1758848566878,0.3942,3925.7,3925.2,0.45829]
[1758848567186,0.45829,3925.4,3924.5,40.8]
[1758848567390,0.1662,3925.0,3924.6,0.45836]
[1758848567688,0.1662,3925.0,3924.0,0.286]
[1758848567689,0.99076414,3924.9,3924.0,0.74444]
[1758848567885,0.3942,3924.6,3924.2,0.45842]
[1758848568082,0.3942,3924.4,3924.0,0.286]
[1758848568281,0.69862414,3924.5,3924.2,0.45842]
[1758848568282,0.92662414,3924.3,3924.2,0.45842]
[1758848568487,0.53242414,3924.3,3924.2,0.76272]
[1758848568687,0.3942,3925.2,3924.2,5.3043]
[1758848568991,0.53337914,3925.1,3925.0,0.45832]
[1758848569184,0.92757914,3925.1,3925.0,0.45832]
[1758848569491,0.92757914,3925.1,3925.0,0.45833]
[1758848569678,0.53337914,3925.1,3925.0,0.45833]
[1758848570189,0.53337914,3925.1,3925.0,0.76263]
[1758848570487,0.1662,3926.5,3925.5,0.3043]
[1758848570791,0.5604,3926.5,3926.4,0.45816]
[1758848571988,0.1662,3926.0,3925.5,0.74426]
[1758848572192,0.1662,3926.0,3925.7,0.45824]
[1758848572391,0.3942,3925.9,3925.7,0.45824]
[1758848572597,0.3942,3926.4,3926.3,0.45816]
[1758848573893,0.3942,3926.4,3926.0,0.4582]
[1758848574088,0.3942,3926.4,3925.4,0.3043]
[1758848574399,2.17943639,3926.9,3925.8,0.3043]
[1758848574688,1.95143639,3927.0,3926.6,0.45813]
[1758848574890,0.3942,3926.9,3926.6,0.45813]
[1758848575092,0.1662,3927.0,3925.7,1.14562]
[1758848575093,0.5604,3927.0,3926.9,0.45811]
[1758848575396,0.0254,3927.1,3926.9,0.76241]
[1758848575893,0.0254,3927.1,3926.9,0.45811]
[1758848576093,0.1662,3928.0,3927.9,0.45799]
[1758848576291,0.5604,3928.0,3927.9,0.45799]
[1758848576590,0.5604,3928.0,3927.2,0.286]
[1758848576890,0.3942,3927.9,3927.8,0.45799]
[1758848577497,0.1662,3928.5,3928.3,0.45793]
[1758848577798,0.3942,3928.4,3927.6,0.3043]
[1758848577993,0.3942,3928.4,3927.5,0.286]
[1758848578796,0.1662,3928.0,3927.7,0.458]
[1758848578989,0.3942,3927.9,3927.7,0.458]
[1758848579190,0.1662,3928.5,3927.5,0.285]
[1758848579396,0.1662,3928.5,3927.6,0.3043]
[1758848579690,0.3942,3928.6,3927.6,0.3043]
[1758848580088,0.3942,3928.6,3928.3,0.45793]
[1758848580289,0.409,3928.4,3928.3,0.45793]
[1758848580486,0.0254,3928.7,3927.6,4.79132906]
[1758848580688,0.0254,3928.7,3928.6,0.295]